Cogmind - Beta 15 @@@ ROGUE MODE // 2025.09.09 @ 21:48:26 // Winter2019/RPGLIKE Player: lucasboxerhead Result: Destroyed by XJ-6FG(R) with Subdweller Machine Gun Performance ------------- Evolutions (0) 0 Regions Visited (2) 400 Robots Destroyed (12) 60 Value Destroyed (186) 186 Prototype IDs (0) 0 Alien Tech Used (0) 0 Bonus (0) 0 TOTAL SCORE: 646 Bonus ------- None Cogmind --------- Core Integrity 0/600 Matter 300/300 Energy 230/250 System Corruption 0% Temperature Cool (66) Movement Treading (160) Location -10/Subcaves Parts ------- > --- POWER (1) -------- Ion Engine > --- PROPULSION (2) --- Light Treads Light Treads > --- UTILITY (2) ------ Heat Sink > --- WEAPON (2) ------- Medium Laser Medium Laser > --- INVENTORY (0) ---- (None) Peak State ------------ > --- POWER ------------ Ion Engine > --- PROPULSION ------- Light Treads Light Treads > --- UTILITY ---------- Heat Sink Light Armor Plating > --- WEAPON ----------- Medium Laser Medium Laser > --- INVENTORY -------- (None) [Rating: 7] Favorites ----------- Power Ion Engine Engine Ion Engine Propulsion Light Treads Treads Light Treads Utility Light Armor Plating Device Heat Sink Protection Light Armor Plating Weapon Medium Laser Energy Gun Medium Laser Build | -11 -10 -10 ------- Run | Yrd Mat Sub Slots Evolved 3 | 3 . . Power . | . . . Propulsion 1 | 1 . . Utility 1 | 1 . . Weapon 1 | 1 . . Parts Attached 7 | 5 2 . Power 1 | 1 . . Engine 1 | 1 . . Core . | . . . Reactor . | . . . Propulsion 2 | 2 . . Treads 2 | 2 . . Leg . | . . . Wheel . | . . . Hover . | . . . Flight . | . . . Utility 2 | . 2 . Device 1 | . 1 . Storage . | . . . Processor . | . . . Hackware . | . . . Protection 1 | . 1 . Artifact . | . . . Weapon 2 | 2 . . Energy Gun 2 | 2 . . Energy Cannon . | . . . Ballistic Gun . | . . . Ballistic Cannon . | . . . Launcher . | . . . Special Weapon . | . . . Impact Weapon . | . . . Slashing Weapon . | . . . Piercing Weapon . | . . . Special Melee Weapon . | . . . Unidentified Prototypes . | . . . Parts Lost 1 | . . 1 Power . | . . . Propulsion . | . . . Utility 1 | . . 1 Weapon . | . . . Highest Loss Streak 1 | . . 1 To Critical Strikes . | . . . Average Backups . | . . . Power . | . . . Propulsion . | . . . Utility . | . . . Weapon . | . . . Tool/Special . | . . . Unused Backups . | . . . Power . | . . . Propulsion . | . . . Utility . | . . . Weapon . | . . . Tool/Special . | . . . Average Slot Usage (%) 95 | . 94 98 Engine 14 | . 14 14 Treads 28 | . 28 28 Device 10 | . 9 14 Protection 13 | . 13 13 Energy Gun 28 | . 28 28 Peak Build Rating 7 | 5 7 7 Average Rating 6 | 3 6 6 On Entrance 4 | . 5 7 Naked Turns . | . . . Heaviest Build 13 | 9 13 13 Greatest Support 40 | 40 40 40 Greatest Overweight (x) . | . . . Average Overweight (x) . | . . . Largest Inventory Capacity . | . . . Average Capacity . | . . . Most Carried . | . . . Average Carried . | . . . Final Capacity . | . . . Final Carried . | . . . Class Distribution -------------------- 100% | Mutant Dominant Class ---------------- Mutant | -10/Materials Mutant | -10/Subcaves Resources | -11 -10 -10 ----------- Run | Yrd Mat Sub Matter Collected 270 | 250 20 . Remotely . | . . . Salvage Created 263 | . 263 . Parts 19 | . 14 5 Haulers Intercepted . | . . . Recyclers Shooed . | . . . Parts Field Recycled . | . . . Retrieved Matter . | . . . Parts Self-Destructed . | . . . Prevented . | . . . Kills | -11 -10 -10 ------- Run | Yrd Mat Sub Combat Hostiles Destroyed 9 | . 7 2 Guns 8 | . 7 1 Classes Destroyed 6 | . 5 1 Worker 1 | . 1 . Builder 1 | . 1 . Recycler 1 | . 1 . Swarmer 6 | . 6 . Grunt 1 | . 1 . Subdweller 2 | . . 2 Best Kill Streak 5 | . 5 1 Combat Bots Only 3 | . 3 1 Max Kills in Single Turn 1 | . 1 1 Gunslinging . | . . . Exploded . | . . . Melee . | . . . Uniques/NPCs Destroyed . | . . . Combat | -11 -10 -10 -------- Run | Yrd Mat Sub Hostile Shots Fired 97 | . 49 48 Missed 24 | . 15 9 Hits 73 | . 34 39 Projectile 73 | . 34 39 Critical Strikes 2 | . 1 1 Damage Taken 1099 | . 274 825 Core 823 | . 188 635 Absorbed by Shields . | . . . Redirected to Core 681 | . 151 530 Core Remaining (%) 100 | 100 . . Volleys Fired 29 | . 20 9 Largest 2 | . 2 2 Hottest 100 | . 100 100 Shots Fired 58 | . 40 18 Gun 58 | . 40 18 Cannon . | . . . Launcher . | . . . Special . | . . . Kinetic . | . . . Thermal 58 | . 40 18 Explosive . | . . . Electromagnetic . | . . . Robot Hit Streak 18 | . 3 18 Robot Miss Streak 4 | . 4 . Penetration Max . | . . . Secondary Targets . | . . . Shots Hit Robots 37 | . 21 16 Core Hits 15 | . 12 3 Critical Kills . | . . . Critical Parts Destroyed . | . . . Critical Strikes 4 | . . 4 Burn 4 | . . 4 Melee Attacks . | . . . Impact . | . . . Slashing . | . . . Piercing . | . . . Sneak Attacks . | . . . Combat Hostiles . | . . . Follow-up Attacks . | . . . Damage Inflicted 487 | . 287 200 Guns 487 | . 287 200 Cannons . | . . . Explosions . | . . . Melee . | . . . Ramming . | . . . Kinetic . | . . . Thermal 487 | . 287 200 Explosive . | . . . Electromagnetic . | . . . Impact . | . . . Slashing . | . . . Piercing . | . . . Highest Corruption . | . . . Average Corruption . | . . . Corruption Purged . | . . . Corruption Blocked . | . . . Overload Shots . | . . . Overflow Damage . | . . . Projectiles . | . . . Explosions . | . . . Melee . | . . . Knockbacks . | . . . Impact . | . . . Kinetic . | . . . Secondary . | . . . Self-Inflicted Damage . | . . . Shots . | . . . Rammed . | . . . Targets Rammed . | . . . Kicked . | . . . Crushed . | . . . Highest Temperature 272 | . 215 272 Average Temperature 97 | . 83 179 Received Heat Transfer 364 | . 6 358 Siege Activations . | . . . Martial Activations . | . . . Shielding Activations . | . . . Robots Disrupted . | . . . Combat Hostiles . | . . . Robots Corrupted . | . . . Combat Hostiles . | . . . Parts Fried . | . . . Impact Corruptions . | . . . Robots Melted 1 | . . 1 Combat Hostiles 1 | . . 1 Parts Melted 2 | . . 2 Heat Transferred 1739 | . 851 888 Parts Sabotaged . | . . . Parts Stolen . | . . . Parts Stripped . | . . . Power Chain Reactions . | . . . Alert | -11 -10 -10 ------- Run | Yrd Mat Sub Maximum Alert Level . | . . . Low Security (%) 100 | 100 100 . Level 1 . | . . . Level 2 . | . . . Level 3 . | . . . Level 4 . | . . . Level 5 . | . . . High Security . | . . . Max Security . | . . . Peak Influence 180 | . 180 . Initial . | . . . Average 56 | . 72 . Influence Increases 222 | . 222 . Destroy 0b10 Robot/C 140 | . 140 . Destroy 0b10 Robot/NC 15 | . 15 . Destroy Leader 30 | . 30 . Successful Hack 7 | . 7 . Lose Combat Pursuer 30 | . 30 . Influence Decreases 222 | . 121 101 Entered New Map 49 | . . 49 Time Decay 173 | . 121 52 Squads Dispatched 1 | . 1 . Investigation 1 | . 1 . Extermination . | . . . Reinforcement . | . . . Assault . | . . . Garrison . | . . . Intercept . | . . . Searches Triggered . | . . . Construction Impeded . | . . . Haulers Reinforced . | . . . Active Scanning Responses . | . . . Cargo Convoy Interrupts . | . . . Stealth | -11 -10 -10 --------- Run | Yrd Mat Sub Distress Signals . | . . . Communications Jammed . | . . . Distress Signals . | . . . Times Spotted 18 | . 8 10 Peak Tracking Total 8 | . 4 8 Tactical Retreats 1 | . 1 . Traps | -11 -10 -10 ------- Run | Yrd Mat Sub Traps Triggered 1 | . 1 . Indirectly . | . . . Trap Hack Attempts . | . . . Triggered . | . . . Disarmed . | . . . Reprogrammed . | . . . Reused . | . . . Traps Extracted . | . . . Installed . | . . . Triggered . | . . . Machines | -11 -10 -10 ---------- Run | Yrd Mat Sub Machines Disabled . | . . . Max in Single Turn . | . . . Machines Repaired . | . . . Machines Dismantled . | . . . Machines Sabotaged . | . . . Overloaded Fab Kills . | . . . Hacking | -11 -10 -10 --------- Run | Yrd Mat Sub Machines Accessed 2 | . 2 . Terminals 2 | . 2 . Fabricators . | . . . Repair Stations . | . . . Recycling Units . | . . . Scanalyzers . | . . . Garrison Access . | . . . Total Hacks 7 | . 7 . Successful 5 | . 5 . Failed 2 | . 2 . Catastrophic 1 | . 1 . Database Lockouts . | . . . Manual . | . . . Terminals 7 | . 7 . Fabricators . | . . . Repair Stations . | . . . Recycling Units . | . . . Scanalyzers . | . . . Garrison Access . | . . . Terminal Hacks 5 | . 5 . Record 2 | . 2 . Branch Access Points 1 | . 1 . Patrol Status 1 | . 1 . Hauler Manifests 1 | . 1 . Fabricator Hacks . | . . . Repair Station Hacks . | . . . Recycling Unit Hacks . | . . . Scanalyzer . | . . . Garrison Access Hacks . | . . . Unauthorized Hacks . | . . . Terminals . | . . . Fabricators . | . . . Repair Stations . | . . . Recycling Units . | . . . Scanalyzers . | . . . Garrison Access . | . . . Data Cores Recovered . | . . . Used . | . . . Hacking Detections 2 | . 2 . Full Trace Events 1 | . 1 . Feedback Events . | . . . Feedback Blocked . | . . . Robot Schematics Acquired . | . . . Robots Built . | . . . Authchips . | . . . Time . | . . . Total Robot Build Rating . | . . . Part Schematics Acquired . | . . . Parts Built . | . . . Authchips . | . . . Time . | . . . Total Part Build Rating . | . . . Parts Repaired . | . . . Time . | . . . Parts Recycled . | . . . Recycled Matter . | . . . Retrieved Matter . | . . . Retrieved Components . | . . . Parts Scanalyzed . | . . . Part Schematics Acquired . | . . . Parts Damaged . | . . . Bothacking | -11 -10 -10 ------------ Run | Yrd Mat Sub Used RIF Installer . | . . . Robots Hacked . | . . . Non-combat . | . . . Combat . | . . . Robot Hacks Applied . | . . . Relay Couplers Released . | . . . Fabnet Peak Effective % . | . . . Robots Rewired . | . . . Allies Hacked . | . . . Hacks Repelled . | . . . Allies | -11 -10 -10 -------- Run | Yrd Mat Sub Total Allies . | . . . Largest Group . | . . . Highest-Rated Group . | . . . Highest-Rated Ally . | . . . Total Orders . | . . . Ally Attacks . | . . . Total Damage . | . . . Kills . | . . . Allies Corrupted . | . . . Allies Melted . | . . . Intel | -11 -10 -10 ------- Run | Yrd Mat Sub Active Infowar (turns) . | . . . Robot Analysis Total . | . . . Derelict Logs Recovered . | . . . Drone Launches . | . . . Drone Recoveries . | . . . Exploration | -11 -10 -10 ------------- Run | Yrd Mat Sub Turns Passed 673 | 117 422 134 Spaces Moved 347 | 74 214 59 Core 7 | 7 . . Treads 340 | 67 214 59 Legs . | . . . Wheels . | . . . Hover . | . . . Flight . | . . . Fastest Speed 50 | 50 160 160 Average Speed 157 | 149 160 160 Slowest Speed 160 | 160 160 160 Overloaded Moves . | . . . Propulsion Burnouts . | . . . Robots Hopped . | . . . Potential Cave-ins . | . . . Cave-ins Triggered . | . . . Exploration Rate (%) 16 | 5 38 6 Regions Visited 2 Branch Regions 1 Pre-discovered Areas . | . . . Known Exits Taken . | . . . Unknown Exits Taken 2 | 1 1 . Scrap Searched . | . . . Spaces Dug . | . . . Terrain Destroyed . | . . . Melee . | . . . Projectile . | . . . AOE . | . . . Terrain Rammed . | . . . Walls Destroyed . | . . . Machines Disabled . | . . . Actions | -11 -10 -10 --------- Run | Yrd Mat Sub Total 414 | 78 253 83 Wait 23 | . 13 10 Move 345 | 73 213 59 Hop . | . . . Pick Up . | . . . Fast Attach 7 | 5 2 . Attach . | . . . Detach . | . . . Swap . | . . . Drop . | . . . Fire 29 | . 20 9 Melee . | . . . Ram . | . . . Kick . | . . . Crush . | . . . Escape Stasis . | . . . Rewire . | . . . Trap . | . . . Miscellaneous 10 | . 5 5 Route ------- -11/Scrapyard -10/Materials (discovered 3 exits: [*Mat] / *Min / [*Sub]) -10/Subcaves History --------- Turn | Location | Event 10 | -11/Scrapyard | Discovered new exit (range 16) 49 | -11/Scrapyard | Upgraded with Propulsion slot (x1) 49 | -11/Scrapyard | Upgraded with Utility slot (x1) 49 | -11/Scrapyard | Upgraded with Weapon slot (x1) 118 | -11/Scrapyard | Entered Materials 318 | -10/Materials | Build established: Mutant 359 | -10/Materials | Discovered new exit (range 10) 395 | -10/Materials | Discovered new exit (range 13) 447 | -10/Materials | Identified exit to Mines 513 | -10/Materials | Discovered new exit (range 11) 540 | -10/Materials | Entered Subcaves 541 | -10/Subcaves | Approached by a straggling Scientist 542 | -10/Subcaves | Reached level 2 651 | -10/Subcaves | Ambushed by swarm of Subdwellers 653 | -10/Subcaves | Ambushed by Subdwellers from Twisted Machinery 667 | -10/Subcaves | Core integrity fell below 50% 672 | -10/Subcaves | Core integrity fell below 20% 674 | -10/Subcaves | Destroyed by XJ-6FG(R) with Subdweller Machine Gun Last Messages --------------- 00653_ FQ-JML(h) suffers critical hit (Destroy). 00653_ FQ-JML(h) destroyed. 00654_ 6O-RUJ(R) emerges from the Twisted Machinery. 00655_ JM-SBD(R) emerges from the Twisted Machinery. 00655_ Subatomizers dissect the Sub. Monowheel. 00657_ JM-YM1(g): "Sorry we're late! Had another grouchy Sub to deal with. Who's the new fellow?" 00657_ 6O-RUJ(R) suffers critical hit (Burn). 00661_ Lgt. Armor Plating destroyed. 00662_ Critical hit (Meltdown: +280). 00663_ XJ-6FG(R) emerges from the Twisted Machinery. 00666_ 6O-RUJ(R) suffers critical hit (Burn). 00666_ 6O-RUJ(R) overheating. 00667_ 6O-RUJ(R) critical meltdown. 00667_ Disposable Heat Sink melted. 00667_ Sub. Optics melted. 00670_ Subatomizers dissect the Sub. Monowheel. 00671_ WN-KGE(R) suffers critical hit (Burn). 00672_ WN-KGE(R) heat short circuits Sub. Monowheel. 00672_ VG-3OC(R) destroyed. Map ----- +----------------------------------------------------+ | ???????????????## ## ##??????????????????????????? | | ???????????????# ### #???????????????????????????? | | ???????????????# # ##???????????????????????????? | | ???????????????# ##????????????????????????????? | | ???????????????# #??????????#??????????????????? | | ???????????????# ##???????? ##?????????????????? | | ???????????????## #??????? #?????????????????? | | ???????????????# ##?????? #?????????????????? | | ??????????#????# #??????? #??????????????????? | | ????????? ???# #####?? #???????????????????? | | ???????? # ## ### #???????????????????? | | ???????? # &[ ##????? ????????????? | | ??????? ## & ! ## #???????????? | | ??????? ### ! ???????????? | | ??????# ## ???????????? | | ??????## ## ## ???????????? | | ???????##### #?###??? ????????????? | | ???????????## ### ##???????? ?????????????? | | ????????????## ???## & " #???????????????????????? | | ?????????????#????##=!"" ###?????????????????????? | | ??????????????????# c%""" ##?####???????????????? | | ??????????????????# %"["""g"## ????????????????? | | ??????????????????##""g%""" """"""???????????????? | | ??????????????? ##"""g=["" """""#?????????????? | | ???????????? """]*= " ""?????????????? | | ?????????????# "R%&@R"" "#???????????? | | ???????????????## RRR " ???????????? | | ????????????????# "R " ????????????? | | ???????????????# " ### " ####????????????? | | ???????????????#### " #?? " #???????????????? | | ??????????????????## "##??? " #???????????????? | | ???????????????????# ????? ##???????????????? | | ???????????????????# " ??????#????????????????? | | ???????????????????# ""???????????????????????? | | ???????????????????#### ?????????????????????????? | | ??????????????????????##?????????????????????????? | | ?????????????????????????????????????????????????? | | ?????????????????????????????????????????????????? | | ?????????????????????????????????????????????????? | | ?????????????????????????????????????????????????? | | ?????????????????????????????????????????????????? | | ?????????????????????????????????????????????????? | | ?????????????????????????????????????????????????? | | ?????????????????????????????????????????????????? | | ?????????????????????????????????????????????????? | | ?????????????????????????????????????????????????? | | ?????????????????????????????????????????????????? | | ?????????????????????????????????????????????????? | | ?????????????????????????????????????????????????? | | ?????????????????????????????????????????????????? | +----------------------------------------------------+ Best States ------------- Heat Dissipation 35 Energy Generation 10 Energy Capacity 250 Matter Stores 300 Matter Capacity 300 Sight Range 16 Terrain Scan Density 10 Armor Coverage 150 Evasion (%) 40 Recoil Reduction 2 Item Schematics ----------------- None Robot Schematics ------------------ None Fabricated ------------ Nothing Repaired ---------- Nothing Alien Tech Used ----------------- None Achievements -------------- None Challenges ------------ None RPGLIKE | -11 -10 -10 --------- Run | Yrd Mat Sub Levels Raised 1 | . . 1 XP Earned 4885 | 3000 885 1000 XP Spent 4500 | 3000 . 1500 Upgrades 8 | 6 . 2 Propulsion Slot 1 | 1 . . Utility Slot 1 | 1 . . Weapon Slot 1 | 1 . . Ranged Accuracy 5 | 3 . 2 Protomatter Created 125 | . 39 86 Integrity Restored 216 | . 117 99 Core 216 | . 117 99 Protomatter Decayed 21 | . . 21 Game ------ Seed NavigationExperimentalMantle Manual? 0 Play Time 00:10:01 Cumulative 19.2 hours Start 2025.09.09 @ 21:38:14 End 2025.09.09 @ 21:48:26 Sessions 2 Manual Loads 0 Difficulty Rogue Special Mode Winter2019/RPGLIKE Game No. 84 Rogue 81 Adventurer 3 Explorer 0 Win Type - Total 0 Types 0/0/0/0/0/0/0/0/0/0 Lore% 8 Gallery% 19 Achievement% 18 Wizard Run 0 Options --------- Layout 0 ASCII 0 Keyboard 1 Movement Numpad Keybinds 0 Fullscreen 1 Font 18/SmallcapsGlow Map View 76x50 Zoom Use 0% Tactical HUD 1 Map Filters NONE Filters NONE Steam 1 RUN: f6c2f511-f35b-4fae-a08d-8fdf9f946d11